[Event "*** SCC Grand Prix: Titled Tuesday Blitz"]
[Site "Chess.com"]
[Date "2020.07.21"]
[Round "8"]
[White "SantoBlue"]
[Black "vladislavkovalev"]
[Result "1/2-1/2"]
[WhiteElo "2755"]
[BlackElo "2904"]
[TimeControl "180+1"]
[EndTime "11:39:45 PDT"]
[Termination "Game drawn - insufficient material"]

1. e4 {[%clk 0:03:00.9]} 1... e5 {[%clk 0:02:59.8]} 2. Nf3 {[%clk 0:02:59.9]}
2... Nc6 {[%clk 0:03:00.4]} 3. Bb5 {[%clk 0:02:58.4]} 3... a6 {[%clk 0:03:00.9]}
4. Ba4 {[%clk 0:02:58.8]} 4... Nf6 {[%clk 0:03:01.5]} 5. O-O {[%clk 0:02:59]}
5... Be7 {[%clk 0:03:02.1]} 6. Bxc6 {[%clk 0:02:59.6]} 6... dxc6 {[%clk
0:03:01.9]} 7. d3 {[%clk 0:03:00.3]} 7... Nd7 {[%clk 0:03:02.2]} 8. b3 {[%clk
0:02:58.3]} 8... c5 {[%clk 0:02:57.4]} 9. Bb2 {[%clk 0:02:58.5]} 9... f6 {[%clk
0:02:57.8]} 10. Nbd2 {[%clk 0:02:58.6]} 10... Nf8 {[%clk 0:02:51.7]} 11. Nh4
{[%clk 0:02:58.2]} 11... Ne6 {[%clk 0:02:33.1]} 12. Qh5+ {[%clk 0:02:54.2]}
12... Kd7 {[%clk 0:02:33.6]} 13. Qg4 {[%clk 0:02:35.2]} 13... g6 {[%clk
0:02:15.1]} 14. Nc4 {[%clk 0:02:10.9]} 14... Ke8 {[%clk 0:02:12.5]} 15. Qg3
{[%clk 0:01:59.5]} 15... Kf7 {[%clk 0:02:08.2]} 16. Nf3 {[%clk 0:01:54.4]} 16...
Rf8 {[%clk 0:01:58.1]} 17. Rae1 {[%clk 0:01:41.4]} 17... Kg8 {[%clk 0:01:56.2]}
18. h3 {[%clk 0:01:42]} 18... b5 {[%clk 0:01:52.9]} 19. Ne3 {[%clk 0:01:41.5]}
19... c6 {[%clk 0:01:52.6]} 20. Nh2 {[%clk 0:01:36.5]} 20... Nf4 {[%clk
0:01:47.9]} 21. Qf3 {[%clk 0:01:28.4]} 21... h5 {[%clk 0:01:40.7]} 22. h4 {[%clk
0:01:27.4]} 22... Kh7 {[%clk 0:01:39.6]} 23. g3 {[%clk 0:01:27.7]} 23... Ne6
{[%clk 0:01:39.7]} 24. Qg2 {[%clk 0:01:27.7]} 24... Bd6 {[%clk 0:01:24]} 25. Kh1
{[%clk 0:01:24.1]} 25... Ra7 {[%clk 0:01:24.1]} 26. Rg1 {[%clk 0:01:24]} 26...
Rg7 {[%clk 0:01:24.8]} 27. Ref1 {[%clk 0:01:23.8]} 27... Qc7 {[%clk 0:01:16.1]}
28. f3 {[%clk 0:01:19.6]} 28... Kg8 {[%clk 0:01:07.3]} 29. Qd2 {[%clk
0:01:17.5]} 29... Kh7 {[%clk 0:01:05]} 30. Rf2 {[%clk 0:01:15.9]} 30... Bd7
{[%clk 0:00:58.4]} 31. Kg2 {[%clk 0:01:15.8]} 31... f5 {[%clk 0:00:55.6]} 32.
Kf1 {[%clk 0:00:54.8]} 32... f4 {[%clk 0:00:55.8]} 33. gxf4 {[%clk 0:00:53.4]}
33... Nxf4 {[%clk 0:00:49]} 34. Rg3 {[%clk 0:00:52.6]} 34... Qd8 {[%clk
0:00:47.4]} 35. Rg5 {[%clk 0:00:48.5]} 35... Nh3 {[%clk 0:00:36]} 36. Rfg2
{[%clk 0:00:48.6]} 36... Nxg5 {[%clk 0:00:36.1]} 37. Rxg5 {[%clk 0:00:49.5]}
37... Qf6 {[%clk 0:00:29.6]} 38. Qf2 {[%clk 0:00:48]} 38... Rgf7 {[%clk
0:00:21.8]} 39. Ke2 {[%clk 0:00:46.7]} 39... Qe6 {[%clk 0:00:20.6]} 40. Qg3
{[%clk 0:00:45.3]} 40... Re8 {[%clk 0:00:15]} 41. Nf5 {[%clk 0:00:35.2]} 41...
Bf8 {[%clk 0:00:10.4]} 42. Ne3 {[%clk 0:00:34.1]} 42... Bg7 {[%clk 0:00:08.9]}
43. Qg2 {[%clk 0:00:28]} 43... Ree7 {[%clk 0:00:07.8]} 44. Nhf1 {[%clk
0:00:27.9]} 44... Rf4 {[%clk 0:00:04]} 45. Qf2 {[%clk 0:00:22.1]} 45... Bf6
{[%clk 0:00:03.7]} 46. Ng2 {[%clk 0:00:14.2]} 46... Bxg5 {[%clk 0:00:04]} 47.
hxg5 {[%clk 0:00:15.1]} 47... Rf8 {[%clk 0:00:04.7]} 48. Qg3 {[%clk 0:00:11.6]}
48... Ref7 {[%clk 0:00:04.2]} 49. Nh4 {[%clk 0:00:10]} 49... Qh3 {[%clk
0:00:02.3]} 50. Qxh3 {[%clk 0:00:09.3]} 50... Bxh3 {[%clk 0:00:03]} 51. Ne3
{[%clk 0:00:05.8]} 51... Re7 {[%clk 0:00:01.7]} 52. a4 {[%clk 0:00:06]} 52...
Bd7 {[%clk 0:00:02.3]} 53. Ba3 {[%clk 0:00:05.9]} 53... Re6 {[%clk 0:00:01.9]}
54. Bxc5 {[%clk 0:00:05]} 54... Rf4 {[%clk 0:00:02.6]} 55. Neg2 {[%clk
0:00:05.4]} 55... Rf7 {[%clk 0:00:02.6]} 56. a5 {[%clk 0:00:06]} 56... Re8
{[%clk 0:00:02.5]} 57. b4 {[%clk 0:00:06.4]} 57... Bc8 {[%clk 0:00:03.2]} 58.
Ke3 {[%clk 0:00:06.7]} 58... Kg7 {[%clk 0:00:03.8]} 59. Ke2 {[%clk 0:00:05.5]}
59... Re6 {[%clk 0:00:04.2]} 60. Bf2 {[%clk 0:00:05.3]} 60... Bd7 {[%clk
0:00:04.7]} 61. Ne1 {[%clk 0:00:04.7]} 61... Re8 {[%clk 0:00:05.6]} 62. c3
{[%clk 0:00:04.9]} 62... Ref8 {[%clk 0:00:06]} 63. Nc2 {[%clk 0:00:04.5]} 63...
Rf4 {[%clk 0:00:06.3]} 64. Bg3 {[%clk 0:00:03.6]} 64... Rxh4 {[%clk 0:00:05.8]}
65. Bxh4 {[%clk 0:00:03.8]} 65... Bh3 {[%clk 0:00:06.5]} 66. Ne3 {[%clk
0:00:02.9]} 66... Kf7 {[%clk 0:00:07.1]} 67. Bg3 {[%clk 0:00:02.1]} 67... Ke6
{[%clk 0:00:07.5]} 68. d4 {[%clk 0:00:02.7]} 68... exd4 {[%clk 0:00:07.7]} 69.
cxd4 {[%clk 0:00:03.6]} 69... Rd8 {[%clk 0:00:07.3]} 70. Kd3 {[%clk 0:00:03.2]}
70... Rh8 {[%clk 0:00:06.3]} 71. Be5 {[%clk 0:00:03.2]} 71... Re8 {[%clk
0:00:06.3]} 72. f4 {[%clk 0:00:03.7]} 72... Rd8 {[%clk 0:00:06.1]} 73. Kc3
{[%clk 0:00:02.5]} 73... h4 {[%clk 0:00:06.4]} 74. Kd3 {[%clk 0:00:03]} 74...
Kd7 {[%clk 0:00:05]} 75. Ke2 {[%clk 0:00:03.4]} 75... Ke6 {[%clk 0:00:05.5]} 76.
Kf3 {[%clk 0:00:03.8]} 76... Rg8 {[%clk 0:00:04.9]} 77. Bf6 {[%clk 0:00:03.9]}
77... Re8 {[%clk 0:00:04.6]} 78. Kf2 {[%clk 0:00:02.9]} 78... Rf8 {[%clk
0:00:04.8]} 79. Nc2 {[%clk 0:00:03.2]} 79... Rf7 {[%clk 0:00:04.3]} 80. Ne1
{[%clk 0:00:03.6]} 80... Rd7 {[%clk 0:00:03.6]} 81. Nd3 {[%clk 0:00:04.1]} 81...
Rc7 {[%clk 0:00:02]} 82. Nc5+ {[%clk 0:00:05]} 82... Kf7 {[%clk 0:00:02.7]} 83.
Nxa6 {[%clk 0:00:05.8]} 83... Rc8 {[%clk 0:00:02.7]} 84. Nc5 {[%clk 0:00:06.3]}
84... Be6 {[%clk 0:00:03.2]} 85. a6 {[%clk 0:00:06.5]} 85... h3 {[%clk
0:00:03.4]} 86. Kg3 {[%clk 0:00:06.8]} 86... Rh8 {[%clk 0:00:03.8]} 87. Kh2
{[%clk 0:00:07.3]} 87... Ra8 {[%clk 0:00:03.8]} 88. Be5 {[%clk 0:00:07.8]} 88...
Bc8 {[%clk 0:00:04.3]} 89. d5 {[%clk 0:00:04.9]} 89... cxd5 {[%clk 0:00:04.5]}
90. exd5 {[%clk 0:00:05.8]} 90... Bxa6 {[%clk 0:00:05.1]} 91. d6 {[%clk
0:00:06]} 91... Bc8 {[%clk 0:00:05.6]} 92. d7 {[%clk 0:00:06.3]} 92... Bxd7
{[%clk 0:00:05.5]} 93. Nxd7 {[%clk 0:00:07.2]} 93... Ra3 {[%clk 0:00:04.9]} 94.
Nc5 {[%clk 0:00:06.7]} 94... Rf3 {[%clk 0:00:04.2]} 95. Ne4 {[%clk 0:00:06.6]}
95... Ke6 {[%clk 0:00:03.7]} 96. Ng3 {[%clk 0:00:05.7]} 96... Rb3 {[%clk
0:00:03.9]} 97. Kxh3 {[%clk 0:00:05]} 97... Rxb4 {[%clk 0:00:04.5]} 98. Kg4
{[%clk 0:00:05.9]} 98... Rb1 {[%clk 0:00:04.8]} 99. Ne4 {[%clk 0:00:05.9]} 99...
b4 {[%clk 0:00:05.3]} 100. Nc5+ {[%clk 0:00:06.5]} 100... Kd5 {[%clk 0:00:05.7]}
101. Nd7 {[%clk 0:00:06.4]} 101... Ke6 {[%clk 0:00:03.9]} 102. Nc5+ {[%clk
0:00:05.7]} 102... Kd5 {[%clk 0:00:04.2]} 103. Nd7 {[%clk 0:00:06]} 103... Ke6
{[%clk 0:00:04.7]} 104. Nb6 {[%clk 0:00:04.3]} 104... b3 {[%clk 0:00:05.1]} 105.
Na4 {[%clk 0:00:04.3]} 105... Rd1 {[%clk 0:00:03.8]} 106. Nc5+ {[%clk
0:00:04.3]} 106... Kd5 {[%clk 0:00:04.2]} 107. Nxb3 {[%clk 0:00:05.2]} 107...
Ke4 {[%clk 0:00:04.3]} 108. Nc5+ {[%clk 0:00:05.2]} 108... Kd5 {[%clk
0:00:04.8]} 109. Nd7 {[%clk 0:00:04.2]} 109... Rg1+ {[%clk 0:00:05.4]} 110. Kf3
{[%clk 0:00:04.2]} 110... Ke6 {[%clk 0:00:06.3]} 111. Nf6 {[%clk 0:00:04.5]}
111... Kf5 {[%clk 0:00:06.5]} 112. Ne4 {[%clk 0:00:05]} 112... Rf1+ {[%clk
0:00:06.2]} 113. Kg2 {[%clk 0:00:05.3]} 113... Rxf4 {[%clk 0:00:04.7]} 114. Bxf4
{[%clk 0:00:02.4]} 114... Kxf4 {[%clk 0:00:05.6]} 115. Nf2 {[%clk 0:00:02]}
115... Kxg5 {[%clk 0:00:06.5]} 116. Nh3+ {[%clk 0:00:02.9]} 116... Kf5 {[%clk
0:00:07.2]} 117. Ng1 {[%clk 0:00:03.8]} 117... g5 {[%clk 0:00:08.1]} 118. Ne2
{[%clk 0:00:04.3]} 118... g4 {[%clk 0:00:09]} 119. Ng3+ {[%clk 0:00:05.2]}
119... Ke5 {[%clk 0:00:09.3]} 120. Nf1 {[%clk 0:00:06.1]} 120... g3 {[%clk
0:00:10.2]} 121. Nxg3 {[%clk 0:00:07]} 1/2-1/2

[Event "*** SCC Grand Prix: Titled Tuesday Blitz"]
[Site "Chess.com"]
[Date "2020.07.21"]
[Round "9"]
[White "SanchezKelvin"]
[Black "Eternauta2400"]
[Result "0-1"]
[WhiteElo "2392"]
[BlackElo "2560"]
[TimeControl "180+1"]
[EndTime "11:43:31 PDT"]
[Termination "Eternauta2400 won by resignation"]

1. d4 {[%clk 0:03:00.9]} 1... Nf6 {[%clk 0:02:59.6]} 2. c4 {[%clk 0:03:00.7]}
2... e6 {[%clk 0:03:00]} 3. Nf3 {[%clk 0:03:00.2]} 3... d5 {[%clk 0:02:59.9]} 4.
Nc3 {[%clk 0:02:59.3]} 4... Bb4 {[%clk 0:02:59.9]} 5. Qa4+ {[%clk 0:02:57.7]}
5... Nc6 {[%clk 0:02:59.4]} 6. e3 {[%clk 0:02:52.5]} 6... O-O {[%clk 0:02:58.7]}
7. Bd2 {[%clk 0:02:50]} 7... dxc4 {[%clk 0:02:58.3]} 8. Bxc4 {[%clk 0:02:49.1]}
8... a6 {[%clk 0:02:58.8]} 9. Qc2 {[%clk 0:02:48.6]} 9... Bd6 {[%clk 0:02:55.9]}
10. O-O {[%clk 0:02:44.4]} 10... e5 {[%clk 0:02:56.2]} 11. dxe5 {[%clk
0:02:40.1]} 11... Nxe5 {[%clk 0:02:57.1]} 12. Nxe5 {[%clk 0:02:39.5]} 12... Bxe5
{[%clk 0:02:58]} 13. f4 {[%clk 0:02:36]} 13... Bd4 {[%clk 0:02:58.1]} 14. Bd3
{[%clk 0:02:29.6]} 14... Ba7 {[%clk 0:02:54.9]} 15. Kh1 {[%clk 0:02:29.6]} 15...
Qe7 {[%clk 0:02:53.2]} 16. e4 {[%clk 0:02:18.5]} 16... Ng4 {[%clk 0:02:48.2]}
17. Nd1 {[%clk 0:02:00]} 17... Qh4 {[%clk 0:02:45.4]} 0-1

[Event "*** SCC Grand Prix: Titled Tuesday Blitz"]
[Site "Chess.com"]
[Date "2020.07.21"]
[Round "9"]
[White "Ausbildung"]
[Black "mattcolins2025"]
[Result "1-0"]
[WhiteElo "2253"]
[BlackElo "2389"]
[TimeControl "180+1"]
[EndTime "11:43:32 PDT"]
[Termination "Ausbildung won by resignation"]

1. e4 {[%clk 0:02:52.4]} 1... c5 {[%clk 0:03:00.1]} 2. c4 {[%clk 0:02:51.4]}
2... Nc6 {[%clk 0:03:00]} 3. Nc3 {[%clk 0:02:51.8]} 3... e6 {[%clk 0:02:59.6]}
4. Nf3 {[%clk 0:02:48.8]} 4... Nd4 {[%clk 0:02:57.1]} 5. Be2 {[%clk 0:02:37.2]}
5... g6 {[%clk 0:02:56.4]} 6. Nxd4 {[%clk 0:02:33.6]} 6... cxd4 {[%clk
0:02:57.3]} 7. Nb5 {[%clk 0:02:32.9]} 7... Qb6 {[%clk 0:02:48.1]} 8. a4 {[%clk
0:02:26.8]} 8... a6 {[%clk 0:02:45.7]} 9. a5 {[%clk 0:02:22.8]} 9... Qc5 {[%clk
0:02:42.2]} 10. b4 {[%clk 0:02:17.5]} 10... Qxb4 {[%clk 0:02:40.3]} 11. Nc7+
{[%clk 0:02:16.4]} 11... Kd8 {[%clk 0:02:39.9]} 12. Nxa8 {[%clk 0:02:15.6]}
12... Bg7 {[%clk 0:02:39.3]} 13. Bd3 {[%clk 0:01:56.8]} 13... Ne7 {[%clk
0:02:38.4]} 14. Ba3 {[%clk 0:01:51.8]} 1-0

[Event "*** SCC Grand Prix: Titled Tuesday Blitz"]
[Site "Chess.com"]
[Date "2020.07.21"]
[Round "9"]
[White "124chess"]
[Black "LawrenceTrent"]
[Result "1-0"]
[WhiteElo "2695"]
[BlackElo "2564"]
[TimeControl "180+1"]
[EndTime "11:43:48 PDT"]
[Termination "124chess won by resignation"]

1. b3 {[%clk 0:03:00.9]} 1... a5 {[%clk 0:02:58.3]} 2. c4 {[%clk 0:02:55.5]}
2... a4 {[%clk 0:02:58]} 3. b4 {[%clk 0:02:55.7]} 3... d5 {[%clk 0:02:56.7]} 4.
e3 {[%clk 0:02:54.2]} 4... dxc4 {[%clk 0:02:56.5]} 5. Bxc4 {[%clk 0:02:53.8]}
5... e6 {[%clk 0:02:56.8]} 6. a3 {[%clk 0:02:53.9]} 6... Nd7 {[%clk 0:02:55]} 7.
Nf3 {[%clk 0:02:54]} 7... Ngf6 {[%clk 0:02:54]} 8. O-O {[%clk 0:02:54]} 8... b6
{[%clk 0:02:54]} 9. Bb2 {[%clk 0:02:54.5]} 9... Bb7 {[%clk 0:02:54.1]} 10. Qe2
{[%clk 0:02:54.6]} 10... Bd6 {[%clk 0:02:53.6]} 11. Nc3 {[%clk 0:02:53.2]} 11...
O-O {[%clk 0:02:53.3]} 12. d4 {[%clk 0:02:53.2]} 12... e5 {[%clk 0:02:48.6]} 13.
d5 {[%clk 0:02:52.2]} 13... e4 {[%clk 0:02:47.8]} 14. Nd2 {[%clk 0:02:34.8]}
14... Ne5 {[%clk 0:02:37]} 15. Ndxe4 {[%clk 0:02:26.7]} 15... Nxe4 {[%clk
0:02:36.8]} 16. Nxe4 {[%clk 0:02:26.1]} 16... Nxc4 {[%clk 0:02:37.4]} 17. Qxc4
{[%clk 0:02:25.5]} 17... Bxd5 {[%clk 0:02:37.6]} 18. Qd4 {[%clk 0:02:09.1]} 1-0

[Event "*** SCC Grand Prix: Titled Tuesday Blitz"]
[Site "Chess.com"]
[Date "2020.07.21"]
[Round "9"]
[White "mfwagnerpeixoto"]
[Black "Flopezin"]
[Result "1-0"]
[WhiteElo "2273"]
[BlackElo "2103"]
[TimeControl "180+1"]
[EndTime "11:44:10 PDT"]
[Termination "mfwagnerpeixoto won by resignation"]

1. d4 {[%clk 0:03:00.7]} 1... Nf6 {[%clk 0:02:59.1]} 2. c4 {[%clk 0:03:00.3]}
2... e6 {[%clk 0:02:59.3]} 3. Nc3 {[%clk 0:02:58]} 3... Bb4 {[%clk 0:02:59.3]}
4. Qc2 {[%clk 0:02:57.5]} 4... b6 {[%clk 0:02:55.2]} 5. a3 {[%clk 0:02:55]} 5...
Bxc3+ {[%clk 0:02:55.2]} 6. Qxc3 {[%clk 0:02:55.9]} 6... Ne4 {[%clk 0:02:53.9]}
7. Qc2 {[%clk 0:02:55.1]} 7... Bb7 {[%clk 0:02:54.4]} 8. Nh3 {[%clk 0:02:52.5]}
8... O-O {[%clk 0:02:53.3]} 9. f3 {[%clk 0:02:52]} 9... Qh4+ {[%clk 0:02:44.5]}
10. g3 {[%clk 0:02:47.8]} 10... Nxg3 {[%clk 0:02:43]} 11. hxg3 {[%clk
0:02:47.7]} 11... Qxg3+ {[%clk 0:02:43.9]} 12. Nf2 {[%clk 0:02:47.7]} 12... f5
{[%clk 0:02:40.5]} 13. Be3 {[%clk 0:02:29.2]} 13... Nc6 {[%clk 0:02:39]} 14.
O-O-O {[%clk 0:02:25.2]} 14... d5 {[%clk 0:02:26]} 15. Nd3 {[%clk 0:02:16]}
15... f4 {[%clk 0:02:24.6]} 16. Nxf4 {[%clk 0:01:49.5]} 16... g6 {[%clk
0:02:24.4]} 17. Rg1 {[%clk 0:01:44.5]} 17... Qh4 {[%clk 0:02:19.8]} 18. Nxg6
{[%clk 0:01:42.7]} 1-0

[Event "*** SCC Grand Prix: Titled Tuesday Blitz"]
[Site "Chess.com"]
[Date "2020.07.21"]
[Round "9"]
[White "iaraldinho"]
[Black "PowerThinking2650"]
[Result "1-0"]
[WhiteElo "2519"]
[BlackElo "2346"]
[TimeControl "180+1"]
[EndTime "11:44:32 PDT"]
[Termination "iaraldinho won by resignation"]

1. e4 {[%clk 0:03:00.9]} 1... e5 {[%clk 0:02:59.4]} 2. Nf3 {[%clk 0:03:00.9]}
2... Nc6 {[%clk 0:02:59.4]} 3. d4 {[%clk 0:03:01.2]} 3... exd4 {[%clk
0:02:58.9]} 4. Bc4 {[%clk 0:03:02.1]} 4... Nf6 {[%clk 0:02:58.8]} 5. O-O {[%clk
0:03:02.2]} 5... Nxe4 {[%clk 0:02:58.1]} 6. Re1 {[%clk 0:03:02.7]} 6... d5
{[%clk 0:02:58.2]} 7. Bxd5 {[%clk 0:03:03.3]} 7... Qxd5 {[%clk 0:02:58.7]} 8.
Nc3 {[%clk 0:03:04.1]} 8... Qa5 {[%clk 0:02:58.7]} 9. Nxe4 {[%clk 0:03:04.6]}
9... Be6 {[%clk 0:02:59]} 10. Bd2 {[%clk 0:03:05.2]} 10... Bb4 {[%clk
0:02:54.5]} 11. Nxd4 {[%clk 0:03:04.5]} 11... Nxd4 {[%clk 0:02:45.7]} 12. c3
{[%clk 0:03:04.3]} 12... Be7 {[%clk 0:02:11.8]} 13. cxd4 {[%clk 0:03:01.8]}
13... Bb4 {[%clk 0:02:11.7]} 14. d5 {[%clk 0:02:15.4]} 14... Bxd2 {[%clk
0:01:30.3]} 15. dxe6 {[%clk 0:02:15.1]} 15... Bxe1 {[%clk 0:01:18.1]} 16. Qd7+
{[%clk 0:02:13.5]} 1-0

[Event "*** SCC Grand Prix: Titled Tuesday Blitz"]
[Site "Chess.com"]
[Date "2020.07.21"]
[Round "9"]
[White "nrvignesh"]
[Black "MomchilPetkov"]
[Result "1-0"]
[WhiteElo "2768"]
[BlackElo "2582"]
[TimeControl "180+1"]
[EndTime "11:45:05 PDT"]
[Termination "nrvignesh won by resignation"]

1. Nf3 {[%clk 0:03:00.9]} 1... Nf6 {[%clk 0:02:56.7]} 2. c4 {[%clk 0:03:00.3]}
2... e6 {[%clk 0:02:51.9]} 3. b3 {[%clk 0:02:59.9]} 3... d5 {[%clk 0:02:51.4]}
4. Bb2 {[%clk 0:03:00.8]} 4... Be7 {[%clk 0:02:48.9]} 5. g3 {[%clk 0:03:00.6]}
5... O-O {[%clk 0:02:48.7]} 6. Bg2 {[%clk 0:03:01.5]} 6... b6 {[%clk 0:02:49.2]}
7. O-O {[%clk 0:03:01]} 7... Bb7 {[%clk 0:02:49.8]} 8. e3 {[%clk 0:03:01]} 8...
Nbd7 {[%clk 0:02:49.1]} 9. Qe2 {[%clk 0:03:00.6]} 9... c5 {[%clk 0:02:43]} 10.
Nc3 {[%clk 0:02:59.9]} 10... a6 {[%clk 0:02:29.3]} 11. Rfd1 {[%clk 0:02:58]}
11... d4 {[%clk 0:02:09.6]} 12. exd4 {[%clk 0:02:54.7]} 12... cxd4 {[%clk
0:02:10.5]} 13. Nxd4 {[%clk 0:02:52.2]} 13... Bxg2 {[%clk 0:02:10]} 14. Kxg2
{[%clk 0:02:51.3]} 14... Qc7 {[%clk 0:01:46.6]} 15. Nf3 {[%clk 0:02:46]} 15...
e5 {[%clk 0:01:41.8]} 16. Ne4 {[%clk 0:02:42]} 16... Nxe4 {[%clk 0:01:38.1]} 17.
Qxe4 {[%clk 0:02:42.9]} 17... Bf6 {[%clk 0:01:39]} 18. d4 {[%clk 0:02:34.6]}
18... exd4 {[%clk 0:01:35.3]} 19. Bxd4 {[%clk 0:02:35.5]} 19... Rfe8 {[%clk
0:01:31.3]} 20. Qd5 {[%clk 0:02:32.6]} 20... Bxd4 {[%clk 0:01:28.1]} 21. Nxd4
{[%clk 0:02:25.4]} 21... Nf6 {[%clk 0:01:26.8]} 22. Qf3 {[%clk 0:02:19.8]} 22...
h5 {[%clk 0:01:17.1]} 23. Nf5 {[%clk 0:02:13.7]} 23... Re6 {[%clk 0:01:10.5]}
24. Qxa8+ {[%clk 0:02:11.4]} 1-0

[Event "*** SCC Grand Prix: Titled Tuesday Blitz"]
[Site "Chess.com"]
[Date "2020.07.21"]
[Round "9"]
[White "felipelobo"]
[Black "petroniy_arbitr"]
[Result "1/2-1/2"]
[WhiteElo "2113"]
[BlackElo "2249"]
[TimeControl "180+1"]
[EndTime "11:45:15 PDT"]
[Termination "Game drawn by agreement"]

1. e4 {[%clk 0:01:26.5]} 1... e6 {[%clk 0:02:56.8]} 2. d4 {[%clk 0:01:25.8]}
2... d5 {[%clk 0:02:57]} 3. Nc3 {[%clk 0:01:26.3]} 3... Bb4 {[%clk 0:02:56.4]}
4. e5 {[%clk 0:01:25.6]} 4... b6 {[%clk 0:02:55.7]} 5. a3 {[%clk 0:01:25.7]}
5... Bf8 {[%clk 0:02:54.9]} 6. Bd3 {[%clk 0:01:15.6]} 6... Ba6 {[%clk
0:02:53.1]} 7. f4 {[%clk 0:01:13.5]} 7... Bxd3 {[%clk 0:02:51.6]} 8. Qxd3 {[%clk
0:01:13.5]} 8... Ne7 {[%clk 0:02:51.8]} 9. Nf3 {[%clk 0:01:12.1]} 9... Nbc6
{[%clk 0:02:51.6]} 10. Ne2 {[%clk 0:01:11.9]} 10... Qd7 {[%clk 0:02:51.9]} 11.
c3 {[%clk 0:01:12.2]} 11... O-O-O {[%clk 0:02:51.8]} 12. b4 {[%clk 0:01:08.7]}
12... h5 {[%clk 0:02:49.2]} 13. a4 {[%clk 0:01:08]} 13... a5 {[%clk 0:02:44.4]}
14. Ba3 {[%clk 0:01:04.9]} 14... Nf5 {[%clk 0:02:38.4]} 15. bxa5 {[%clk
0:01:02.1]} 15... Nxa5 {[%clk 0:02:36.6]} 16. Qa6+ {[%clk 0:00:57.4]} 16... Kb8
{[%clk 0:02:34.5]} 17. Bxf8 {[%clk 0:00:52.7]} 17... Rhxf8 {[%clk 0:02:33.7]}
18. Rb1 {[%clk 0:00:53]} 1/2-1/2

[Event "*** SCC Grand Prix: Titled Tuesday Blitz"]
[Site "Chess.com"]
[Date "2020.07.21"]
[Round "9"]
[White "Indianlad"]
[Black "tigra"]
[Result "1-0"]
[WhiteElo "2987"]
[BlackElo "2855"]
[TimeControl "180+1"]
[EndTime "11:45:28 PDT"]
[Termination "Indianlad won by resignation"]

1. e4 {[%clk 0:03:00.9]} 1... c5 {[%clk 0:02:59.7]} 2. Nc3 {[%clk 0:03:00.7]}
2... a6 {[%clk 0:02:52.5]} 3. g3 {[%clk 0:02:59.6]} 3... b5 {[%clk 0:02:48.7]}
4. Bg2 {[%clk 0:03:00]} 4... Bb7 {[%clk 0:02:45]} 5. d3 {[%clk 0:03:00.4]} 5...
g6 {[%clk 0:02:44.2]} 6. Be3 {[%clk 0:02:52.9]} 6... d6 {[%clk 0:02:44]} 7. Qd2
{[%clk 0:02:47.7]} 7... Bg7 {[%clk 0:02:43.4]} 8. Nf3 {[%clk 0:02:46.2]} 8... e5
{[%clk 0:02:33.8]} 9. O-O {[%clk 0:02:38.5]} 9... Nc6 {[%clk 0:02:33.5]} 10. a4
{[%clk 0:02:37.4]} 10... b4 {[%clk 0:02:33.2]} 11. Nd5 {[%clk 0:02:37.4]} 11...
Nce7 {[%clk 0:02:31.8]} 12. Nxe7 {[%clk 0:02:35.5]} 12... Qxe7 {[%clk
0:02:30.5]} 13. a5 {[%clk 0:02:35.5]} 13... Nf6 {[%clk 0:02:26.9]} 14. c3 {[%clk
0:02:36.1]} 14... bxc3 {[%clk 0:02:26.5]} 15. bxc3 {[%clk 0:02:36.5]} 15... c4
{[%clk 0:02:26.3]} 16. Bg5 {[%clk 0:02:24.9]} 16... cxd3 {[%clk 0:02:24.7]} 17.
Bxf6 {[%clk 0:02:24.8]} 17... Bxf6 {[%clk 0:02:22.2]} 18. Qxd3 {[%clk
0:02:25.4]} 18... d5 {[%clk 0:02:15.5]} 19. exd5 {[%clk 0:02:04.6]} 19... e4
{[%clk 0:02:15]} 20. Qd2 {[%clk 0:02:05]} 20... exf3 {[%clk 0:02:13.4]} 21. Rfe1
{[%clk 0:02:05]} 21... fxg2 {[%clk 0:02:10.7]} 22. Rxe7+ {[%clk 0:02:02.9]}
22... Bxe7 {[%clk 0:01:56.1]} 23. Re1 {[%clk 0:02:02]} 23... O-O-O {[%clk
0:01:26.3]} 24. Rxe7 {[%clk 0:01:44.8]} 24... Rxd5 {[%clk 0:01:25.7]} 25. Qe2
{[%clk 0:01:43.6]} 25... Rhd8 {[%clk 0:01:23.5]} 26. Qc4+ {[%clk 0:01:43.7]} 1-0

[Event "*** SCC Grand Prix: Titled Tuesday Blitz"]
[Site "Chess.com"]
[Date "2020.07.21"]
[Round "9"]
[White "manmanlai1"]
[Black "korkmaz16"]
[Result "0-1"]
[WhiteElo "2472"]
[BlackElo "2360"]
[TimeControl "180+1"]
[EndTime "11:45:34 PDT"]
[Termination "korkmaz16 won by resignation"]

1. d4 {[%clk 0:03:00.9]} 1... d5 {[%clk 0:02:38.6]} 2. Bf4 {[%clk 0:03:00.8]}
2... Nf6 {[%clk 0:02:37.6]} 3. e3 {[%clk 0:03:00.2]} 3... c5 {[%clk 0:02:38.1]}
4. c3 {[%clk 0:02:59.2]} 4... Nc6 {[%clk 0:02:38.6]} 5. Nf3 {[%clk 0:02:58.6]}
5... Qb6 {[%clk 0:02:38.9]} 6. Qb3 {[%clk 0:02:51.4]} 6... c4 {[%clk 0:02:36.8]}
7. Qc2 {[%clk 0:02:50.8]} 7... Bf5 {[%clk 0:02:36.3]} 8. Qc1 {[%clk 0:02:51.3]}
8... e6 {[%clk 0:02:35.8]} 9. h3 {[%clk 0:02:50.4]} 9... h6 {[%clk 0:02:36]} 10.
Nbd2 {[%clk 0:02:50.6]} 10... Be7 {[%clk 0:02:34.7]} 11. Be2 {[%clk 0:02:51]}
11... O-O {[%clk 0:02:34.6]} 12. O-O {[%clk 0:02:51.5]} 12... Qd8 {[%clk
0:02:34.7]} 13. Ne5 {[%clk 0:02:47]} 13... Nxe5 {[%clk 0:02:29.9]} 14. Bxe5
{[%clk 0:02:45.1]} 14... b5 {[%clk 0:02:29.1]} 15. Bf3 {[%clk 0:02:37.3]} 15...
Rc8 {[%clk 0:02:25.3]} 16. Bxf6 {[%clk 0:02:37.1]} 16... Bxf6 {[%clk 0:02:21.2]}
17. e4 {[%clk 0:02:37.3]} 17... dxe4 {[%clk 0:02:20]} 18. Nxe4 {[%clk
0:02:30.3]} 18... Bxe4 {[%clk 0:02:12.7]} 19. Bxe4 {[%clk 0:02:31.2]} 19... e5
{[%clk 0:02:13.3]} 20. d5 {[%clk 0:02:24.5]} 20... Be7 {[%clk 0:02:13.1]} 21.
Bf5 {[%clk 0:02:20.6]} 21... Rc7 {[%clk 0:02:11.8]} 22. Rd1 {[%clk 0:02:19]}
22... Bc5 {[%clk 0:02:01.6]} 23. Qc2 {[%clk 0:02:10.2]} 23... Qd6 {[%clk
0:02:00.8]} 24. b3 {[%clk 0:02:07.5]} 24... cxb3 {[%clk 0:01:55.6]} 25. axb3
{[%clk 0:02:08.4]} 25... g6 {[%clk 0:01:53.9]} 26. Bd3 {[%clk 0:02:05]} 26... b4
{[%clk 0:01:48.5]} 27. Ra6 {[%clk 0:02:03.4]} 27... Bb6 {[%clk 0:01:43.2]} 28.
Bc4 {[%clk 0:02:00.5]} 28... bxc3 {[%clk 0:01:40.1]} 29. Qxc3 {[%clk 0:01:53.5]}
29... Bxf2+ {[%clk 0:01:39.7]} 30. Kxf2 {[%clk 0:01:54.4]} 30... Qxa6 {[%clk
0:01:39.6]} 31. Qxe5 {[%clk 0:01:54.9]} 31... Qb6+ {[%clk 0:01:36.3]} 32. Kg3
{[%clk 0:01:49.6]} 32... Rxc4 {[%clk 0:01:32.2]} 0-1